bitfinex-derivatives/quotes_ETHF0:USTF0_20251119
["timestamp","ask_amount","ask_price","bid_price","bid_amount"]
[1763567211199,0.0050226,2987.7,2987.3,3.2078]
[1763567211504,0.0050226,2987.7,2987.1,3.45136255]
[1763567211505,3.2078,2989.2,2987.6,5.85539728]
[1763567211699,3.2078,2989.2,2988.1,3.2078]
[1763567211894,3.2078,2989.2,2988.0,0.7072]
[1763567211895,3.2078,2988.6,2988.0,0.7072]
[1763567212403,3.2078,2989.4,2988.5,3.2078]
[1763567212610,3.2078,2990.4,2989.2,3.2078]
[1763567212906,3.2078,2990.4,2989.5,3.2078]
[1763567213205,3.2078,2990.4,2989.8,3.2078]
[1763567213402,3.2078,2990.4,2989.6,3.2078]
[1763567213597,3.2078,2990.0,2989.7,0.0050226]
[1763567213897,3.75003,2989.8,2989.6,0.00434839]
[1763567214101,0.54231,2989.4,2988.4,3.2078]
[1763567214298,6.0050226,2990.3,2989.3,3.2078]
[1763567214299,0.0050226,2990.3,2989.3,3.2078]
[1763567214507,0.0050226,2990.3,2989.6,3.2078]
[1763567214807,3.2128226,2990.3,2989.4,3.2078]
[1763567215106,3.2128226,2990.3,2989.6,0.0050226]
[1763567215397,3.2078,2989.8,2989.4,0.0037622]
[1763567215607,3.2078,2990.1,2989.4,0.0037622]
[1763567215799,3.2078,2990.1,2989.4,3.2115622]
[1763567216499,3.2078,2990.1,2989.6,3.2078]
[1763567216702,3.2078,2990.0,2989.5,0.0050226]
[1763567217401,0.0050226,2990.3,2989.6,3.2078]
[1763567217604,0.0050226,2990.3,2989.9,3.2078]
[1763567217798,0.0050226,2990.3,2989.7,3.2078]
[1763567218298,3.2078,2989.8,2989.5,0.0050226]
[1763567218599,3.2078,2989.8,2989.4,0.0037622]
[1763567218600,1.08454,2989.6,2989.4,0.0037622]
[1763567219200,4.29238,2989.5,2989.4,0.0037622]
[1763567220207,3.2078,2989.5,2989.2,0.00336255]
[1763567220507,3.2078,2989.5,2987.0,0.7072]
[1763567220508,1.08502,2988.3,2987.0,3.2078]
[1763567220813,3.2078,2988.7,2987.3,3.2078]
[1763567221103,3.2078,2988.7,2987.0,0.7072]
[1763567221104,3.2078,2988.4,2987.7,3.2078]
[1763567221305,0.0050226,2988.3,2987.7,0.00431889]
[1763567221504,3.2078,2988.1,2987.7,0.00431889]
[1763567221697,4.29288,2988.1,2987.7,0.00431889]
[1763567221897,4.293,2987.8,2987.7,0.00431889]
[1763567222203,4.33892059,2987.8,2987.7,0.00431889]
[1763567222601,0.04592059,2987.8,2987.7,3.21211889]
[1763567222807,0.02775068,2987.8,2987.7,3.21211889]
[1763567223006,0.02775068,2987.8,2987.7,9.21211889]
[1763567223206,0.02775068,2987.8,2987.7,3.21211889]
[1763567223404,0.0050226,2988.3,2987.7,9.21211889]
[1763567223701,0.0050226,2988.3,2988.1,3.2078]
[1763567223903,4.29234,2989.6,2988.1,3.2078]
[1763567224112,2.2709734,2991.4,2988.1,3.2078]
[1763567224113,0.54215,2990.3,2989.4,3.2078]
[1763567224297,3.2078,2990.2,2989.4,3.2078]
[1763567224498,3.2078,2991.1,2990.0,3.3459]
[1763567224707,0.54196,2991.4,2990.9,3.2078]
[1763567225010,0.55002308,2991.4,2991.1,3.2078]
[1763567225214,0.55002308,2991.4,2990.9,0.00893222]
[1763567225416,0.54199,2991.2,2990.9,0.00893222]
[1763567225609,0.00806308,2991.4,2990.9,0.00893222]
[1763567225610,1.08404,2991.0,2990.9,0.00893222]
[1763567225803,4.29184,2991.0,2990.9,0.00893222]
[1763567226310,0.6796,2989.8,2988.8,3.2078]
[1763567226500,1.08472,2989.1,2988.6,3.2078]
[1763567226704,1.08472,2989.1,2988.8,3.2078]
[1763567226908,1.08472,2989.1,2988.9,3.2078]
[1763567227106,1.08472,2989.1,2988.6,3.2078]
[1763567227308,0.00785258,2989.1,2988.9,3.2078]
[1763567227711,3.2078,2990.3,2988.9,3.2078]
[1763567228012,3.2078,2990.6,2990.1,3.2078]
[1763567228212,1.08416,2990.7,2990.1,3.2078]
[1763567228811,1.09255845,2990.7,2990.1,3.2128226]
[1763567229012,3.2078,2990.5,2990.1,0.0050226]
[1763567229714,0.54214,2990.3,2990.1,0.0050226]
[1763567229917,1.08429,2990.3,2990.1,0.0050226]
[1763567230206,0.00839845,2990.7,2990.1,0.0050226]
[1763567230408,0.00839845,2990.7,2990.3,3.2078]
[1763567230607,0.00839845,2990.7,2990.1,0.0050226]
[1763567230608,0.00839845,2990.7,2990.6,3.2078]
[1763567230808,0.00839845,2990.7,2990.1,0.0050226]
[1763567230809,0.00839845,2990.7,2990.3,3.2078]
[1763567231007,0.00839845,2990.7,2990.6,3.2078]
[1763567231209,0.00839845,2990.7,2990.1,0.0050226]
[1763567231408,3.2078,2990.3,2990.1,0.0050226]
[1763567231613,3.2078,2990.3,2988.8,3.2078]
[1763567231910,1.0847,2989.2,2988.6,0.00320763]
[1763567232103,1.08472,2989.1,2988.6,0.00320763]
[1763567232308,1.08502,2988.3,2987.9,3.2078]
[1763567232508,1.08502,2988.3,2987.6,3.2078]
[1763567232706,0.54257,2988.0,2987.2,3.2078]
[1763567233017,1.08526,2987.7,2987.2,3.2078]
[1763567233217,1.08526,2987.7,2987.3,3.2078]
[1763567233417,1.08847186,2987.7,2987.3,3.2078]
[1763567233917,0.00321186,2987.7,2987.6,3.2078]
[1763567234417,0.00321186,2987.7,2987.3,3.2078]
[1763567234810,0.00321186,2987.7,2987.6,3.2078]
[1763567235118,0.6796,2987.6,2986.4,0.00361913]
[1763567235419,1.08553,2986.9,2986.4,3.21141913]
[1763567235919,3.8874,2987.6,2986.4,3.21141913]
[1763567236121,0.00321186,2987.7,2986.5,0.6387]
[1763567236411,0.0050226,2988.4,2987.4,3.2078]
[1763567236614,0.0050226,2988.4,2988.1,3.2078]
[1763567236915,3.2078,2989.9,2988.2,2.135]
[1763567237117,3.2078,2989.9,2989.2,3.2078]
[1763567237310,4.29213,2990.2,2989.2,3.2078]
[1763567237510,4.29525463,2990.2,2989.5,3.2078]
[1763567237712,1.08745463,2990.2,2989.5,3.2078]
[1763567237910,0.0050226,2990.1,2989.6,0.0050226]
[1763567238516,0.0050226,2990.1,2989.6,3.2128226]
[1763567239014,3.2078,2989.7,2989.6,0.0050226]
[1763567239221,4.2923,2989.7,2989.6,0.0050226]
[1763567239721,4.2923,2989.7,2989.2,0.00298957]
[1763567239910,1.0845,2989.7,2989.2,0.00298957]
[1763567240116,1.0845,2989.7,2989.3,3.2078]
[1763567240522,0.0050226,2990.1,2989.3,3.2078]
[1763567240818,0.0050226,2990.1,2989.6,3.2078]
[1763567241218,0.0050226,2990.1,2989.2,0.00298957]
[1763567241420,0.6796,2989.8,2988.8,3.2078]
[1763567241617,1.0848,2988.9,2987.8,3.2078]
[1763567241813,1.0848,2988.9,2988.2,3.2078]
[1763567242018,0.0050226,2988.8,2988.2,3.2078]
[1763567242313,0.0050226,2988.8,2987.9,3.2078]
[1763567242521,0.0050226,2988.8,2988.2,3.2078]
[1763567242816,0.0050226,2988.8,2988.5,3.2078]
[1763567243018,0.0050226,2988.8,2987.9,3.21198486]
[1763567243210,3.2078,2988.4,2987.9,0.00418486]
[1763567243619,1.08492,2988.6,2987.9,3.21198486]
[1763567243820,1.08502,2988.3,2987.9,0.00418486]
[1763567244520,0.0050226,2988.8,2988.0,3.2078]
[1763567244713,0.0050226,2988.8,2988.4,3.2078]
[1763567245020,0.0050226,2988.8,2988.7,3.2078]
[1763567245226,3.2078,2989.9,2988.7,5.3558]
[1763567245422,1.08437,2990.1,2989.2,3.2078]
[1763567245725,1.08437,2990.1,2989.5,3.2078]
[1763567246116,0.54218,2990.1,2989.8,3.2078]
[1763567246326,0.54201,2991.1,2989.8,3.2078]
[1763567246327,3.2078,2990.8,2989.8,3.2078]
[1763567246526,3.2078,2991.0,2989.7,3.2078]
[1763567246719,1.08412,2990.8,2989.7,3.2078]
[1763567246918,1.08412,2990.8,2989.6,3.2078]
[1763567247121,1.08412,2990.8,2990.1,3.2078]
[1763567247315,1.08433,2990.2,2990.1,0.00273847]
[1763567247617,4.29213,2990.2,2990.1,0.00273847]
[1763567247932,1.08433,2990.2,2990.1,0.00273847]
[1763567248628,3.2078,2990.5,2990.1,0.00273847]
[1763567248921,0.0050226,2990.7,2990.4,3.2078]
[1763567249326,3.2078,2992.1,2990.4,9.2078]
[1763567249516,3.2078,2992.1,2991.3,3.2078]
[1763567249827,3.2078,2991.6,2990.7,3.2078]
[1763567250319,3.2078,2991.0,2990.1,0.00273847]
[1763567250516,4.29196,2990.7,2990.1,3.21053847]
[1763567250826,1.08416,2990.7,2990.1,3.21053847]
[1763567251422,1.08416,2990.7,2990.1,3.21555234]
[1763567251924,1.08416,2990.7,2990.2,3.2078]
[1763567252114,1.08416,2990.7,2990.1,0.00775234]
[1763567252115,3.2078,2991.3,2990.5,3.2078]
[1763567252320,0.00501387,2991.4,2990.9,3.2078]
[1763567252626,3.2078,2991.3,2990.3,3.2078]
[1763567252825,1.08408,2990.9,2990.3,3.2078]
[1763567253625,3.2078,2991.0,2990.1,0.00775234]
[1763567253822,1.08422,2990.5,2990.1,0.00775234]
[1763567254730,0.54213,2990.4,2990.1,0.00775234]
[1763567255625,3.2078,2990.6,2987.6,2.71943755]
[1763567255626,1.08488,2988.7,2987.6,2.71943755]
[1763567255931,3.2078,2988.1,2987.6,0.3442]
[1763567256131,3.2078,2988.1,2986.9,3.2078]
[1763567256434,3.2078,2987.5,2986.9,0.00398497]
[1763567256625,0.00302046,2988.1,2986.9,0.00899593]
[1763567256626,1.08548,2987.0,2986.9,0.00899593]
[1763567256830,1.08552,2986.9,2985.9,3.2078]
[1763567257032,3.239123,2987.7,2985.6,3.441]
[1763567257033,3.2078,2986.4,2985.6,6.6488]
[1763567257734,0.00502311,2986.3,2985.6,6.65306625]
[1763567258032,3.2078,2985.7,2985.6,0.00426625]
[1763567258334,0.00417247,2985.7,2985.6,0.00426625]
[1763567258530,3.21282311,2986.3,2985.6,0.00426625]
[1763567258735,3.21282311,2986.3,2985.8,3.2078]
[1763567259037,0.00502311,2986.3,2986.1,3.2078]
[1763567259426,0.00866485,2986.3,2985.8,3.2078]
[1763567259628,3.2078,2987.2,2986.1,3.2078]
[1763567259924,1.08503,2988.3,2985.7,1.766]
[1763567259925,4.29286,2988.2,2986.9,3.2078]
[1763567260125,3.2078,2987.9,2987.2,3.2078]
[1763567260330,3.2078,2987.6,2986.5,5.4809]
[1763567260527,1.08506,2988.2,2986.5,5.4809]
[1763567260528,4.29286,2988.2,2987.1,3.2078]
[1763567260730,4.29286,2988.2,2986.5,2.2731]
[1763567260731,0.00502311,2987.9,2987.7,3.2078]
[1763567261035,0.00502311,2987.9,2987.7,0.0026839]
[1763567261731,0.00502311,2987.9,2985.6,2.37523755]
[1763567261732,0.54299,2985.7,2985.0,2.37523755]
[1763567261936,3.75083,2985.5,2984.3,3.00013755]
[1763567262127,3.75083,2985.5,2984.8,3.2078]
[1763567262432,0.54303,2985.5,2984.5,3.2078]
[1763567262626,0.54548524,2985.5,2985.4,0.67940501]
[1763567262836,1.08849524,2985.5,2985.4,1e-08]
[1763567263828,2.57338303,2985.7,2985.6,0.6751]
[1763567264628,1.08602,2985.5,2985.4,1e-08]
[1763567264837,1.09007261,2985.5,2985.4,1e-08]
[1763567267132,1.09007261,2985.5,2985.4,0.67510001]
[1763567267436,0.00405261,2985.5,2985.4,0.67510001]
[1763567267631,0.00502311,2985.7,2985.4,6.67510001]
[1763567267834,0.00502311,2985.7,2985.4,0.67510001]
[1763567268727,0.00830451,2985.7,2985.4,0.67510001]
[1763567268924,4.51e-06,2985.7,2985.5,3.2078]
[1763567269730,4.51e-06,2985.7,2985.4,0.67510001]
[1763567270140,3.21282311,2985.8,2985.4,0.67510001]
[1763567270141,2.762e-05,2985.8,2985.4,0.67510001]
[1763567270330,3.2078,2986.6,2986.5,0.6751]
[1763567270531,3.2078,2987.5,2986.5,0.6751]
[1763567270835,3.2078,2987.2,2986.5,0.6751]
[1763567271139,3.2078,2986.9,2986.5,0.6751]
[1763567271834,3.2078,2986.6,2986.5,0.6751]
[1763567272927,4.29342,2986.6,2986.5,0.6751]
[1763567273133,4.29342,2986.6,2986.4,0.00502311]
[1763567273134,1.08566,2986.5,2986.4,0.00502311]
[1763567274342,3.2078,2986.6,2986.5,0.6751]
[1763567275432,0.00502311,2987.0,2986.5,0.6751]
[1763567275936,3.2078,2986.8,2986.5,0.6751]
[1763567276330,0.00502311,2987.0,2986.5,0.6751]
[1763567276536,3.2078,2986.9,2986.5,0.6751]
[1763567276738,3.2078,2986.6,2986.5,0.6751]
[1763567277335,4.29332,2986.9,2986.5,0.6751]
[1763567277744,1.08552,2986.9,2986.5,0.6751]
[1763567277950,0.00502311,2987.0,2986.5,6.6751]
[1763567278145,2.311e-05,2987.0,2986.6,3.2078]
[1763567278638,2.311e-05,2987.0,2986.5,0.6751]
[1763567278846,2.311e-05,2987.0,2986.7,3.2078]
[1763567279545,2.311e-05,2987.0,2986.5,0.6751]
[1763567280337,3.2078,2986.6,2986.5,0.6751]
[1763567280541,4.29342,2986.6,2986.5,0.6751]
[1763567281245,4.29342,2986.6,2986.4,0.00502311]
[1763567281840,3.2078,2986.6,2986.4,0.00502311]
[1763567283552,4.29344,2986.6,2986.4,0.00502311]
[1763567284047,3.2078,2986.6,2986.4,0.00502311]
[1763567284243,3.75062,2986.6,2986.4,0.00502311]
[1763567284442,4.29344,2986.6,2986.4,0.00502311]
[1763567285251,1.08566,2986.5,2986.4,0.00502311]
[1763567288554,3.2078,2986.6,2985.4,0.67510001]
[1763567288752,3.75078,2985.7,2985.4,0.67510001]
[1763567288954,0.543,2985.6,2985.4,0.67510001]
[1763567289259,1.08602,2985.5,2985.4,1e-08]
[1763567289657,3.2078,2985.7,2985.4,1e-08]
[1763567290556,3.2078,2986.1,2985.4,6.00000001]
[1763567290757,3.2078,2985.8,2985.4,1e-08]
[1763567291151,3.2078,2985.9,2985.4,1e-08]
[1763567291558,3.2078,2985.6,2985.4,1e-08]
[1763567291860,1.08578,2986.2,2985.4,1e-08]
[1763567291861,3.2078,2985.9,2985.4,1e-08]
[1763567292458,1.08556,2986.8,2986.2,0.6903]
[1763567292459,3.2078,2986.4,2986.2,0.6903]
[1763567293148,3.08544064,2986.8,2986.2,3.8981]
[1763567293347,2.311e-05,2987.0,2986.2,3.8981]
[1763567293348,2.311e-05,2987.0,2986.2,6.6903]
[1763567293557,2.311e-05,2987.0,2986.2,0.6903]
[1763567293761,2.311e-05,2987.0,2986.3,3.45]
[1763567293959,3.2078,2986.6,2986.2,0.6903]
[1763567294355,3.2078,2986.3,2986.2,0.6903]
[1763567295057,4.29354,2986.3,2985.4,1e-08]
[1763567295260,3.2078,2985.8,2985.4,1e-08]
[1763567295453,3.2078,2985.5,2985.4,1e-08]
[1763567295758,3.2078,2985.8,2985.4,1e-08]
[1763567295960,3.2078,2986.1,2985.4,1e-08]
[1763567296460,3.2078,2985.8,2985.4,1e-08]
[1763567296958,3.2078,2986.1,2985.4,1e-08]
[1763567297950,3.2078,2986.1,2985.5,3.2078]
[1763567298148,3.2078,2986.8,2986.2,0.6903]
[1763567298557,2.311e-05,2987.0,2986.5,3.2078]
[1763567298861,3.2078,2986.7,2986.2,0.6903]
[1763567299059,3.2078,2986.3,2986.2,0.6903]
[1763567299356,4.29354,2986.3,2985.4,1e-08]
[1763567299563,3.2078,2985.9,2985.4,1e-08]
[1763567300452,1.08574,2986.3,2985.4,1e-08]
[1763567300453,1.08574,2986.3,2986.2,0.6903]
[1763567300654,3.2078,2986.7,2986.2,0.6903]
[1763567301251,3.2078,2986.6,2986.2,0.6903]
[1763567301758,3.2078,2986.3,2986.2,0.6903]
[1763567302160,4.29354,2986.3,2986.2,0.6903]
[1763567302361,3.2078,2986.6,2986.2,0.6903]
[1763567303564,3.2078,2986.7,2986.2,0.6903]
[1763567304263,3.20782311,2987.0,2986.2,3.8981]
[1763567305166,3.2078,2986.5,2986.2,0.6903]
[1763567306667,2.311e-05,2987.0,2986.3,3.2078]
[1763567306864,2.2709734,2988.9,2986.3,3.2078]
[1763567306865,3.2078,2987.8,2987.2,0.6051]
[1763567307066,3.2078,2987.5,2987.2,0.6051]
[1763567307659,4.29302,2987.8,2987.2,0.6051]
[1763567307858,4.30089604,2987.8,2987.2,0.61012311]
[1763567308066,4.30089604,2987.8,2987.2,3.81792311]
[1763567308466,1.09309604,2987.8,2987.2,3.81792311]
[1763567308769,4.29264,2988.8,2987.7,3.2078]
[1763567309074,3.2078,2989.6,2988.9,0.6051]
[1763567309271,3.2078,2990.0,2989.3,3.2078]
[1763567309773,0.00502311,2989.9,2989.4,0.00502311]
[1763567310169,3.2078,2989.7,2989.4,0.00502311]
[1763567310368,3.2078,2989.7,2988.0,0.6051]
[1763567310568,3.75022,2988.8,2988.0,0.6051]
[1763567310776,1.0849,2988.6,2988.0,0.6051]
[1763567310969,1.085,2988.4,2987.8,3.195]
[1763567311168,3.2078,2988.1,2987.8,3.195]
[1763567311476,3.2078,2988.1,2987.8,0.0029792]
[1763567311773,1.08516,2987.9,2987.8,0.0029792]
[1763567311972,1.08814544,2987.9,2987.8,0.0029792]
[1763567312371,0.00298544,2987.9,2987.8,0.0029792]
[1763567312573,0.00298544,2987.9,2987.8,3.2107792]
[1763567313271,0.00502311,2988.2,2988.0,0.6607]
[1763567313472,1.0847,2989.2,2988.1,5.8128]
[1763567313674,3.2078,2989.0,2988.1,5.8128]
[1763567313978,3.2078,2988.7,2988.1,5.8128]
[1763567314270,3.2078,2988.2,2988.1,2.605]
[1763567314478,3.2078,2988.3,2988.1,2.605]
[1763567314673,0.00502311,2988.4,2988.1,2.605]
[1763567315372,3.21282311,2988.4,2988.1,2.605]
[1763567315573,0.00271735,2988.7,2988.1,5.8128]
[1763567315773,3.2078,2988.9,2988.1,5.8128]
[1763567316371,3.2078,2988.6,2988.1,3.2078]
[1763567316672,3.2078,2988.2,2988.1,0.00502311]
[1763567316880,0.0091784,2988.6,2988.1,0.00502311]
[1763567317678,0.0091784,2988.6,2988.2,3.2078]
[1763567318376,3.2078,2989.9,2989.8,0.6607]
[1763567318579,3.2078,2990.5,2989.8,0.6607]
[1763567318979,3.2078,2989.9,2989.8,0.6607]
[1763567319278,3.21158529,2989.9,2989.6,3.44302311]
[1763567320272,1.0845,2989.7,2988.9,0.6607]
[1763567320478,3.2078,2989.0,2988.9,0.6607]
[1763567320674,3.2078,2989.0,2988.1,3.436]
[1763567320883,3.2078,2989.0,2988.3,3.2078]
[1763567321385,3.2078,2988.7,2988.4,0.00502311]
[1763567323281,3.2078,2989.0,2988.4,0.00502311]
[1763567323583,4.29274,2988.5,2988.4,0.00502311]
[1763567324184,3.2078,2989.0,2988.4,0.00502311]
[1763567324475,3.2078,2989.0,2988.4,3.21282311]
[1763567324875,1.08466,2989.3,2988.8,0.6607]
[1763567324876,4.29246,2989.3,2988.8,0.6607]
[1763567325487,4.29246,2989.3,2988.4,3.21282311]
[1763567326377,4.29246,2989.3,2988.8,0.6607]
[1763567326579,3.21158529,2989.9,2988.8,0.6607]
[1763567326778,3.21158529,2989.9,2989.0,3.2078]
[1763567326983,3.21158529,2989.9,2989.6,0.6607]
[1763567327183,1.08940311,2990.1,2989.6,0.6607]
[1763567327583,0.00502311,2990.1,2989.7,3.2078]
[1763567327887,0.00502311,2990.1,2989.6,0.6607]
[1763567328182,0.00866264,2990.1,2989.6,0.6607]
[1763567328385,0.00866264,2990.1,2989.5,2.174]
[1763567328386,3.2078,2989.8,2989.5,2.174]
[1763567328984,3.2078,2989.9,2989.6,0.6607]
[1763567329177,3.2078,2989.9,2989.5,2.174]
[1763567329377,1.08442,2990.0,2989.5,2.174]
[1763567329378,3.2078,2989.6,2989.5,2.174]
[1763567330084,3.2078,2989.6,2989.1,3.435]
[1763567330289,3.2078,2989.9,2989.4,3.2078]
[1763567330677,3.2078,2989.9,2989.1,3.435]
[1763567331490,3.2078,2989.9,2989.4,3.2078]
[1763567331994,0.00866264,2990.1,2989.7,3.2078]
[1763567332282,0.00866264,2990.1,2989.6,0.6607]
[1763567332283,3.2078,2990.5,2990.4,0.6607]
[1763567332787,3.2078,2990.5,2989.7,3.2078]
[1763567333086,3.2078,2989.9,2989.8,0.00502311]
[1763567333387,1.08436,2990.1,2989.8,0.00502311]
[1763567334987,3.2078,2989.9,2989.8,0.00502311]
[1763567335187,4.29224,2989.9,2988.9,3.2078]
[1763567335486,3.2078,2989.5,2988.8,0.6607]
[1763567335689,4.29238,2989.5,2988.8,0.6607]
[1763567335884,3.2078,2988.9,2988.2,3.2078]
[1763567336296,0.00502311,2988.8,2988.3,0.00502311]
[1763567337688,0.00502311,2988.8,2988.6,3.2078]
[1763567337887,0.00502311,2988.8,2988.3,3.21282311]
[1763567338089,0.00502311,2988.8,2988.4,3.2078]
[1763567338691,0.00502311,2988.8,2988.3,0.00502311]
[1763567340190,0.6488,2990.4,2989.3,1.08464]
[1763567340389,0.6488,2990.4,2990.0,3.2078]
[1763567340595,3.2078,2990.1,2989.3,3.2078]
[1763567340785,0.6488,2989.6,2988.8,1.868]
[1763567340986,0.6488,2989.6,2989.3,3.2078]
[1763567341184,0.6488,2988.8,2988.2,2.39669964]
[1763567341387,0.6488,2988.8,2988.3,3.2078]
[1763567341789,3.2078,2989.5,2988.7,3.2078]
[1763567341998,0.6488,2989.6,2988.7,3.2078]
[1763567342199,3.2078,2989.3,2988.9,0.00502311]
[1763567342589,3.2078,2989.0,2988.9,0.00502311]
[1763567342791,0.7002,2988.8,2988.2,0.00288157]
[1763567343085,3.2078,2988.3,2987.7,3.2078]
[1763567343391,0.7002,2988.0,2987.0,3.2078]
[1763567343591,0.7002,2988.0,2987.2,3.2078]
[1763567343784,3.21282311,2987.9,2987.3,0.00502311]
[1763567343990,3.2078,2987.4,2987.3,0.00853477]
[1763567345099,10.29316,2987.4,2985.9,0.26966525]
[1763567345298,3.2078,2986.3,2985.6,4.5028]
[1763567345495,3.2078,2986.2,2985.6,4.5028]
[1763567345690,3.2078,2986.7,2985.6,4.77251912]
[1763567345893,3.21282311,2986.4,2985.9,3.21282311]
[1763567346197,3.2078,2987.8,2986.4,0.7244]
[1763567346493,3.2078,2987.0,2986.3,3.2078]
[1763567346693,3.2078,2987.2,2986.4,3.2078]
[1763567347199,0.00502311,2987.1,2986.9,3.2078]
[1763567347698,0.00502311,2987.1,2986.2,3.2078]
[1763567347994,3.2078,2986.9,2986.2,3.2078]
[1763567349495,0.00502311,2987.1,2986.6,3.2078]
[1763567349686,0.00502311,2987.1,2987.0,3.2078]
[1763567350087,0.0037684,2987.9,2987.0,3.2078]
[1763567350289,3.2115684,2987.9,2987.4,3.2078]
[1763567350494,3.2115684,2987.9,2987.1,3.2078]
[1763567350894,0.0037684,2987.9,2987.4,3.2078]
[1763567351094,0.00879151,2987.9,2987.4,3.2078]
[1763567351795,0.00879151,2987.9,2987.1,3.2078]
[1763567352100,3.2078,2987.8,2987.1,3.2078]
[1763567352596,0.7002,2987.2,2986.0,3.2078]
[1763567352803,3.2078,2986.4,2985.9,0.00502311]
[1763567353093,4.29338,2986.8,2985.9,0.00502311]
[1763567353301,3.2078,2986.6,2985.9,0.00502311]
[1763567353498,4.29338,2986.8,2985.9,0.00502311]
[1763567353694,1.08558,2986.8,2986.1,3.2078]
[1763567354006,0.7002,2987.2,2986.5,3.2078]
[1763567354496,3.2078,2987.3,2986.5,3.2078]
[1763567355199,3.2078,2987.2,2986.5,3.2078]
[1763567355393,3.2078,2987.5,2986.5,3.2078]
[1763567355790,3.2078,2987.8,2987.3,3.2078]
[1763567355996,0.00879151,2987.9,2987.6,3.2078]
[1763567356597,0.00879151,2987.9,2987.5,0.00502311]
[1763567357499,3.2078,2987.8,2987.5,0.00502311]
[1763567357889,10.293,2987.8,2987.5,0.00502311]
[1763567358093,1.08524,2987.7,2986.9,2.198]
[1763567358301,3.2078,2987.4,2986.9,2.198]
[1763567358805,1.08528,2987.6,2986.9,2.198]
[1763567358806,3.2078,2987.3,2986.9,2.198]
[1763567359005,3.2078,2987.4,2986.9,2.198]
[1763567359891,1.08528,2987.6,2986.9,5.4058]
[1763567360600,3.2078,2987.0,2986.8,0.00502311]
[1763567360801,0.54282,2986.6,2986.2,3.2078]
[1763567360993,0.54282,2986.6,2985.8,3.2078]
[1763567361489,3.2078,2986.7,2985.8,3.2078]
[1763567361690,3.2078,2986.7,2985.6,0.27809388]
[1763567361691,0.00502311,2986.5,2986.2,3.2078]
[1763567361893,1.08536,2987.4,2986.2,3.2078]
[1763567362094,1.08536,2987.4,2986.6,3.2078]
[1763567362500,3.2078,2987.1,2986.6,3.2078]
[1763567362999,3.21282311,2987.1,2986.3,3.2078]
[1763567363502,0.00502311,2987.1,2986.2,3.2078]
[1763567363701,0.00502311,2987.1,2986.5,3.2078]
[1763567363900,3.21282311,2987.1,2986.5,3.2078]
[1763567364099,3.21282311,2987.1,2986.2,3.2078]
[1763567364301,3.21282311,2987.1,2986.5,3.2078]
[1763567364694,3.21282311,2987.1,2986.2,3.2078]
[1763567364896,1.08552,2987.0,2986.2,3.2078]
[1763567365201,3.2078,2986.7,2986.2,3.2078]
[1763567366205,0.00502311,2987.1,2986.5,3.2078]
[1763567366404,0.0037684,2987.9,2987.0,3.2078]
[1763567366699,3.2078,2987.7,2987.0,3.2078]
[1763567366902,0.0037684,2987.9,2987.3,3.2078]
[1763567367106,3.2078,2987.7,2987.0,3.2078]
[1763567367292,0.00502311,2987.6,2987.0,3.2078]
[1763567367696,3.2078,2987.3,2986.4,3.9372]
[1763567367896,3.2078,2986.7,2986.0,3.21282311]
[1763567368094,3.908,2986.4,2986.0,0.00502311]
[1763567368297,3.2078,2986.3,2986.0,0.00502311]
[1763567368502,3.2078,2986.9,2986.0,0.00502311]
[1763567368998,3.2078,2986.7,2986.0,0.00502311]
[1763567369399,1.08552,2986.9,2986.1,3.2078]
[1763567369605,3.2078,2986.7,2986.0,3.21282311]
[1763567369804,1.08552,2986.9,2986.3,3.2078]
[1763567370000,3.21282311,2987.6,2986.6,3.2078]
[1763567370310,3.21282311,2987.6,2986.9,3.2078]
[1763567371311,3.2078,2987.3,2986.6,3.2078]
[1763567372111,0.6607,2987.2,2986.6,3.2078]
[1763567372312,1.08546,2987.1,2986.6,3.2078]
[1763567372614,1.08546,2987.1,2986.0,0.00502311]
[1763567372615,3.21282311,2987.6,2986.9,3.2078]
[1763567372810,3.2078,2988.2,2987.5,3.2078]
[1763567373108,3.2078,2988.2,2987.2,0.6483]
[1763567373109,3.2078,2988.5,2987.8,3.2078]
[1763567373818,0.00502311,2988.4,2988.2,3.2078]
[1763567374022,3.2078,2988.3,2988.2,0.00392529]
[1763567374317,1.08508,2988.2,2987.3,3.2078]
[1763567374514,3.8685,2988.0,2987.3,3.2078]
[1763567374701,3.2078,2987.7,2987.0,3.2078]
[1763567375107,3.2078,2987.7,2987.1,0.00502311]
[1763567375518,3.2078,2987.3,2987.1,0.00502311]
[1763567375714,1.08558,2986.8,2985.8,3.2078]
[1763567375913,4.29366,2986.0,2985.3,3.2078]
[1763567376112,1.08586,2986.0,2985.1,3.2078]
[1763567376410,1.08586,2986.0,2985.2,3.2078]
[1763567376612,1.08586,2986.0,2985.5,3.2078]
[1763567376806,0.00892702,2986.0,2985.5,3.21541459]
[1763567377007,3.2078,2986.9,2985.9,3.2078]
[1763567377409,3.2078,2986.9,2986.1,3.2078]
[1763567378011,0.00502311,2986.8,2986.4,3.2078]
[1763567380113,0.00502311,2986.8,2986.5,3.2078]
[1763567381409,0.00347781,2986.9,2986.5,3.2078]
[1763567381609,1.74584,2988.0,2986.5,3.2078]
[1763567381610,4.29294,2988.0,2986.8,3.2078]
[1763567381818,1.08514,2988.0,2987.5,3.2078]
[1763567382016,3.2078,2988.3,2987.5,3.2078]
[1763567382216,1.0852,2987.8,2987.5,3.2078]
[1763567382415,3.2078,2987.6,2987.4,0.00502311]
[1763567382607,0.00317575,2987.8,2987.4,0.00502311]
[1763567383209,1.08837575,2987.8,2987.4,0.00502311]
[1763567383519,3.2078,2987.5,2987.4,0.00502311]
[1763567383715,3.2078,2987.5,2986.5,3.2078]
[1763567383917,0.54296,2985.9,2985.5,0.00259148]
[1763567384218,1.08604,2985.5,2984.5,3.2078]
[1763567384415,3.2078,2985.2,2984.5,3.2078]
[1763567385018,3.21282311,2985.1,2984.6,0.00502311]